bitfinex-derivatives/quotes_BNBF0:USTF0_20230830
["timestamp","ask_amount","ask_price","bid_price","bid_amount"]
[1693405492324,0.81643677,223.85,223.39,0.82147094]
[1693405492525,0.81643677,223.85,223.4,0.82147094]
[1693405492726,0.81643677,223.85,223.39,0.82147094]
[1693405492923,0.07197864,223.86,223.4,0.82147094]
[1693405493127,0.07197864,223.87,223.4,0.82147094]
[1693405493424,0.81595522,223.86,223.4,0.82147094]
[1693405494428,0.07197864,223.87,223.4,0.82147094]
[1693405494622,0.8159479,223.86,223.4,0.82147094]
[1693405495429,0.07197864,223.87,223.4,0.82147094]
[1693405496031,0.81625632,223.86,223.4,0.82147094]
[1693405496828,0.88823496,223.86,223.4,0.82147094]
[1693405497028,0.07197864,223.86,223.4,0.82147094]
[1693405497630,0.07197864,223.87,223.4,0.82147094]
[1693405497831,0.81621089,223.86,223.4,0.82147094]
[1693405498025,0.88818953,223.86,223.4,0.82147094]
[1693405498226,0.07197864,223.86,223.4,0.82147094]
[1693405498429,0.07197864,223.87,223.4,0.82147094]
[1693405498731,0.81622783,223.86,223.4,0.82147094]
[1693405498929,0.88820647,223.86,223.4,0.82147094]
[1693405499226,0.07197864,223.86,223.4,0.82147094]
[1693405499932,0.07197864,223.86,223.4,0.89388265]
[1693405500132,0.07197864,223.86,223.41,0.82147094]
[1693405502234,0.07197864,223.85,223.41,0.82147094]
[1693405502635,0.07197864,223.89,223.44,0.07241171]
[1693405502934,0.07197864,223.9,223.45,0.89388265]
[1693405503130,0.07197864,223.91,223.47,0.07241171]
[1693405503335,0.07197864,223.92,223.48,0.82147094]
[1693405503529,0.07197864,223.91,223.48,0.82147094]
[1693405504537,0.07197864,223.92,223.48,0.89388265]
[1693405504737,0.07197864,223.92,223.49,0.82147094]
[1693405504930,0.07197864,223.91,223.49,0.82147094]
[1693405506735,0.07197864,223.91,223.49,0.89388265]
[1693405506935,0.07197864,223.91,223.5,0.82147094]
[1693405508638,0.07197864,223.92,223.5,0.89388265]
[1693405508830,0.07197864,223.93,223.51,0.89388265]
[1693405509033,0.07197864,223.98,223.54,0.07241171]
[1693405509235,0.07197864,223.98,223.55,0.82147094]
[1693405510240,0.07197864,223.99,223.55,0.82147094]
[1693405510439,0.07197864,223.98,223.54,0.82147094]
[1693405510634,0.07197864,223.98,223.55,0.82147094]
[1693405510837,0.07197864,223.99,223.56,0.82147094]
[1693405511037,0.07197864,223.99,223.57,0.82147094]
[1693405511233,0.07197864,223.98,223.54,0.82147094]
[1693405511436,0.07197864,223.98,223.55,0.82147094]
[1693405511640,0.07197864,223.98,223.54,0.82147094]
[1693405511943,0.07197864,223.98,223.55,0.82147094]
[1693405512241,0.07197864,223.99,223.52,0.89388265]
[1693405512435,0.07197864,223.99,223.53,0.82147094]
[1693405513542,0.07197864,223.99,223.52,0.82147094]
[1693405513743,0.07197864,224.0,223.53,0.82147094]
[1693405514144,0.81872315,223.99,223.54,0.82147094]
[1693405514342,0.81872315,223.99,223.52,0.82147094]
[1693405514538,0.81872315,223.99,223.53,0.82147094]
[1693405514737,0.81872315,223.99,223.54,0.82147094]
[1693405514941,0.81872315,223.99,223.55,0.82147094]
[1693405515143,0.07197864,224.01,223.51,0.82147094]
[1693405515339,0.8186493,224.0,223.52,0.82147094]
[1693405515543,0.07197864,224.02,223.52,0.82147094]
[1693405515738,0.81875343,224.01,223.52,0.82147094]
[1693405516341,0.81875343,224.02,223.53,0.82147094]
[1693405516545,0.81875343,224.01,223.51,0.82147094]
[1693405516847,0.81875343,224.0,223.52,0.82147094]
[1693405517041,0.89073207,224.02,223.51,0.82147094]
[1693405517243,0.81875343,224.01,223.51,0.82147094]
[1693405518046,0.81875343,224.02,223.51,0.82147094]
[1693405518246,0.81875343,224.01,223.51,0.82147094]
[1693405518445,0.81875343,224.02,223.51,0.82147094]
[1693405518647,0.81875343,224.0,223.51,0.82147094]
[1693405518841,0.07197864,224.03,223.51,0.82147094]
[1693405519046,0.81878374,224.02,223.51,0.82147094]
[1693405521145,0.81878374,224.02,223.5,0.82147094]
[1693405521346,0.81878374,224.02,223.51,0.82147094]
[1693405522247,0.81878374,224.02,223.52,0.82147094]
[1693405522448,0.81878374,224.02,223.5,0.82147094]
[1693405522645,0.81878374,224.02,223.51,0.82147094]
[1693405522945,0.81878374,224.02,223.52,0.82147094]
[1693405523147,0.81878374,224.02,223.5,0.89388265]
[1693405523339,0.81878374,224.02,223.51,0.82147094]
[1693405524948,0.89076238,224.02,223.5,0.89388265]
[1693405525248,0.81878374,224.01,223.51,0.82147094]
[1693405526048,0.89076238,224.01,223.51,0.82147094]
[1693405526350,0.07197864,223.97,223.51,0.82147094]
[1693405526547,0.81878374,223.96,223.46,0.82147094]
[1693405526741,0.81878374,223.96,223.47,0.82147094]
[1693405526945,0.81878374,223.96,223.46,0.82147094]
[1693405527148,0.81878374,223.96,223.47,0.82147094]
[1693405527348,0.81878374,223.96,223.46,0.82147094]
[1693405527543,0.81878374,223.96,223.47,0.82147094]
[1693405527748,0.81878374,223.96,223.48,0.82147094]
[1693405527950,0.89076238,223.96,223.49,0.82147094]
[1693405528150,0.81878374,223.95,223.5,0.82147094]
[1693405528351,0.81878374,223.95,223.51,0.82147094]
[1693405528555,0.81878374,223.95,223.52,0.82147094]
[1693405528746,0.81878374,223.95,223.53,0.82147094]
[1693405528946,0.81878374,223.95,223.54,0.82147094]
[1693405529149,0.89076238,223.95,223.55,0.82147094]
[1693405529347,0.81878374,223.94,223.56,0.82147094]
[1693405529655,0.81878374,223.94,223.57,0.82147094]
[1693405529849,0.81878374,223.94,223.48,0.82147094]
[1693405530047,0.81878374,223.94,223.49,0.82147094]
[1693405530252,0.81878374,223.94,223.48,0.82147094]
[1693405530448,0.81878374,223.94,223.49,0.82147094]
[1693405530653,0.81878374,223.94,223.48,0.82147094]
[1693405530849,0.81878374,223.94,223.49,0.82147094]
[1693405530850,0.89076238,223.94,223.49,0.82147094]
[1693405531050,0.07197864,223.94,223.5,0.82147094]
[1693405531251,0.07197864,223.94,223.51,0.82147094]
[1693405531451,0.07197864,223.94,223.48,0.82147094]
[1693405531653,0.07197864,223.94,223.49,0.82147094]
[1693405531850,0.07197864,223.94,223.48,0.82147094]
[1693405532056,0.07197864,223.93,223.49,0.07241171]
[1693405532255,0.07197864,223.93,223.5,0.82147094]
[1693405533059,0.07197864,223.92,223.5,0.89388265]
[1693405533359,0.07197864,223.92,223.51,0.82147094]
[1693405534961,0.07197864,223.9,223.51,0.89388265]
[1693405535257,0.07197864,223.9,223.52,0.82147094]
[1693405535859,0.07197864,223.91,223.52,0.89388265]
[1693405536059,0.07197864,223.91,223.53,0.82147094]
[1693405536358,0.07197864,223.91,223.53,0.89388265]
[1693405536558,0.07197864,223.91,223.54,0.82147094]
[1693405536756,0.07197864,223.91,223.55,0.82147094]
[1693405536958,0.07197864,223.91,223.56,0.82147094]
[1693405537157,0.07197864,223.91,223.53,0.82147094]
[1693405537357,0.07197864,223.91,223.54,0.82147094]
[1693405537558,0.07197864,223.91,223.53,0.82147094]
[1693405537757,0.07197864,223.89,223.54,0.89388265]
[1693405537958,0.07197864,223.89,223.55,0.82147094]
[1693405539759,0.07197864,223.88,223.55,0.82147094]
[1693405540559,0.07197864,223.87,223.55,0.82147094]
[1693405540860,0.07197864,223.87,223.54,0.82147094]
[1693405541060,0.07197864,223.87,223.55,0.82147094]
[1693405541760,0.07197864,223.87,223.56,0.82147094]
[1693405541958,0.07197864,223.87,223.54,0.82147094]
[1693405542156,0.07197864,223.87,223.53,0.07241171]
[1693405542157,0.07197864,223.87,223.55,0.82147094]
[1693405542355,0.07197864,223.87,223.54,0.82147094]
[1693405542662,0.07197864,223.87,223.55,0.82147094]
[1693405542856,0.07197864,223.87,223.54,0.82147094]
[1693405543663,0.07197864,223.85,223.54,0.82147094]
[1693405543862,0.07197864,223.84,223.53,0.82147094]
[1693405544057,0.07197864,223.81,223.46,0.07241171]
[1693405544262,0.07197864,223.8,223.47,0.8214422]
[1693405544463,0.07197864,223.8,223.48,0.8214422]
[1693405544762,0.07197864,223.8,223.49,0.8214422]
[1693405544961,0.07197864,223.82,223.46,0.8214422]
[1693405545162,0.07197864,223.82,223.47,0.8214422]
[1693405545364,0.07197864,223.82,223.44,0.8214422]
[1693405545558,0.07197864,223.82,223.45,0.8214422]
[1693405545756,0.07197864,223.82,223.44,0.8214422]
[1693405545958,0.07197864,223.82,223.45,0.8214422]
[1693405546264,0.07197864,223.82,223.46,0.8214422]
[1693405546564,0.07197864,223.82,223.47,0.8214422]
[1693405546764,0.07197864,223.82,223.48,0.8214422]
[1693405547069,0.07197864,223.83,223.49,0.8214422]
[1693405547274,0.07197864,223.83,223.41,0.07241171]
[1693405547275,0.07197864,223.83,223.42,0.8214422]
[1693405547564,0.07197864,223.83,223.43,0.8214422]
[1693405547864,2.42697362,223.97,223.44,0.8214422]
[1693405547865,0.07197864,223.84,223.44,0.8214422]
[1693405548061,0.07197864,223.84,223.41,0.8214422]
[1693405548262,0.07197864,223.84,223.42,0.8214422]
[1693405548459,0.07197864,223.84,223.41,0.8214422]
[1693405548665,0.07197864,223.84,223.42,0.8214422]
[1693405548866,0.07197864,223.84,223.43,0.8214422]
[1693405549168,0.07197864,223.84,223.41,0.8214422]
[1693405549367,0.07197864,223.84,223.42,0.8214422]
[1693405549567,0.07197864,223.84,223.41,0.8214422]
[1693405549767,0.07197864,223.84,223.42,0.8214422]
[1693405549967,0.07197864,223.85,223.43,0.8214422]
[1693405550267,0.81832782,223.84,223.44,0.8214422]
[1693405550469,0.89030646,223.84,223.4,0.8214422]
[1693405550668,0.07197864,223.84,223.41,0.8214422]
[1693405550869,0.07197864,223.84,223.4,0.8214422]
[1693405551166,0.07197864,223.85,223.4,0.8214422]
[1693405551366,0.07197864,223.85,223.41,0.8214422]
[1693405551367,0.81833473,223.84,223.41,0.8214422]
[1693405551562,0.89031337,223.84,223.39,0.8214422]
[1693405551766,0.07197864,223.8,223.4,0.8214422]
[1693405551968,0.07197864,223.78,223.34,0.8214422]
[1693405552171,0.07197864,223.78,223.35,0.8214422]
[1693405552367,0.07197864,223.85,223.36,0.07241171]
[1693405552566,0.8182482,223.84,223.36,0.07241171]
[1693405552763,0.8182482,223.84,223.37,0.8214422]
[1693405553072,0.8182482,223.84,223.37,0.89385391]
[1693405553367,0.8182482,223.84,223.38,0.8214422]
[1693405554168,0.07197864,223.86,223.38,0.8214422]
[1693405554169,0.8182482,223.85,223.38,0.8214422]
[1693405554669,0.89022684,223.85,223.38,0.8214422]
[1693405554968,0.8182482,223.84,223.39,0.8214422]
[1693405555168,0.8182482,223.84,223.36,0.8214422]
[1693405555368,0.8182482,223.84,223.37,0.8214422]
[1693405555570,0.8182482,223.84,223.29,0.14579534]
[1693405555571,0.8182482,223.84,223.36,0.89423625]
[1693405555868,0.8182482,223.84,223.37,0.8214422]
[1693405556261,0.8182482,223.84,223.38,0.8214422]
[1693405556468,0.8182482,223.84,223.35,0.07279405]
[1693405556469,0.8182482,223.84,223.39,0.8214422]
[1693405556668,0.8182482,223.84,223.36,0.8214422]
[1693405556871,0.8182482,223.84,223.37,0.8214422]
[1693405558668,0.89075456,223.84,223.37,0.8214422]
[1693405558869,0.8182482,223.83,223.37,0.8214422]
[1693405559171,0.07250636,223.85,223.37,0.8214422]
[1693405559370,0.81827809,223.84,223.37,0.8214422]
[1693405559966,0.89078445,223.84,223.37,0.89423625]
[1693405560171,0.81827809,223.83,223.38,0.8214422]
[1693405560365,0.07250636,223.84,223.38,0.8214422]
[1693405560567,0.07250636,223.85,223.38,0.8214422]
[1693405560770,0.81813004,223.84,223.38,0.89423625]
[1693405560971,0.81813004,223.84,223.39,0.8214422]
[1693405561266,0.8906364,223.84,223.39,0.8214422]
[1693405561471,0.07250636,223.84,223.39,0.8214422]
[1693405564871,0.07250636,223.83,223.39,0.8214422]
[1693405565569,0.07250636,223.83,223.4,0.8214422]
[1693405565773,0.07250636,223.83,223.41,0.8214422]
[1693405565974,0.07250636,223.83,223.42,0.8214422]
[1693405566274,0.07250636,223.83,223.43,0.8214422]
[1693405566473,0.07250636,223.83,223.39,0.8214422]
[1693405566673,0.07250636,223.83,223.4,0.8214422]
[1693405566876,0.07250636,223.83,223.41,0.8214422]
[1693405567074,0.07250636,223.82,223.39,0.8214422]
[1693405567671,0.07250636,223.82,223.38,0.8214422]
[1693405567871,0.07250636,223.82,223.39,0.8214422]
[1693405570075,0.07250636,223.82,223.39,0.89423625]
[1693405570274,0.07250636,223.82,223.4,0.8214422]
[1693405570477,0.14501273,223.84,223.4,0.8214422]
[1693405570478,0.07250636,223.81,223.4,0.8214422]
[1693405570677,0.07250636,223.81,223.41,0.8214422]
[1693405570879,0.07250636,223.81,223.39,0.8214422]
[1693405571081,0.07250636,223.8,223.4,0.8214422]
[1693405572980,0.07250636,223.79,223.4,0.89423625]
[1693405573279,0.07250636,223.79,223.41,0.8214422]
[1693405573877,0.07250636,223.79,223.4,0.89423625]
[1693405574077,0.07250636,223.79,223.41,0.8214422]
[1693405574279,0.07250636,223.77,223.41,0.8214422]
[1693405574480,0.07250636,223.77,223.41,0.89423625]
[1693405574678,0.07250636,223.77,223.42,0.8214422]
[1693405576079,0.07250636,223.76,223.42,0.89423625]
[1693405576281,0.07250636,223.76,223.43,0.8214422]
[1693405576581,0.07250636,223.76,223.43,0.89423625]
[1693405576783,0.07250636,223.76,223.44,0.8214422]
[1693405577180,0.07250636,223.74,223.45,0.07279405]
[1693405577381,0.07250636,223.74,223.46,0.8214422]
[1693405577580,0.07250636,223.75,223.46,0.8214422]
[1693405577774,0.07250636,223.75,223.46,0.89423625]
[1693405577981,0.07250636,223.75,223.47,0.8214422]
[1693405578888,0.07250636,223.73,223.48,0.07279405]
[1693405579185,0.07250636,223.73,223.49,0.8214422]
[1693405580079,0.07250636,223.73,223.49,0.89423625]
[1693405580279,0.07250636,223.73,223.5,0.8214422]
[1693405583182,0.07250636,223.72,223.5,0.8214422]
[1693405587489,2.41687898,223.86,223.5,0.89423625]
[1693405587490,0.07250636,223.73,223.5,0.89423625]
[1693405587785,0.07250636,223.73,223.51,0.8214422]
[1693405592490,0.07250636,223.73,223.5,0.8214422]
[1693405592689,0.07250636,223.73,223.51,0.8214422]
[1693405592889,0.07250636,223.73,223.5,0.8214422]
[1693405593090,0.07250636,223.73,223.51,0.8214422]
[1693405593390,0.07250636,223.73,223.52,0.8214422]
[1693405593591,0.07250636,223.73,223.49,0.07279405]
[1693405593892,0.07250636,223.73,223.5,0.82149831]
[1693405594783,0.07250636,223.73,223.5,0.89429236]
[1693405595090,0.07250636,223.74,223.5,0.89429236]
[1693405595284,0.07250636,223.73,223.51,0.82149831]
[1693405595488,0.07250636,223.74,223.51,0.82149831]
[1693405596992,0.07250636,223.74,223.5,0.82149831]
[1693405597191,0.07250636,223.74,223.51,0.82149831]
[1693405597993,0.07250636,223.73,223.52,0.82149831]
[1693405598191,0.07250636,223.73,223.5,0.82149831]
[1693405598390,0.07250636,223.73,223.51,0.82150891]
[1693405598586,0.07250636,223.73,223.5,0.82150891]
[1693405598790,0.07250636,223.73,223.51,0.82151548]
[1693405598991,0.07250636,223.73,223.48,0.07279405]
[1693405599291,0.07250636,223.73,223.49,0.82151538]
[1693405599887,0.07250636,223.73,223.49,0.89430943]
[1693405600086,0.07250636,223.73,223.5,0.82151538]
[1693405600293,0.07250636,223.73,223.49,0.82151538]
[1693405600587,0.07250636,223.73,223.5,0.82151538]
[1693405600787,0.07250636,223.73,223.49,0.82151538]
[1693405600991,0.07250636,223.73,223.5,0.82151538]
[1693405601191,0.07250636,223.72,223.49,0.82151538]
[1693405601987,0.07250636,223.73,223.49,0.82151538]
[1693405602187,0.07250636,223.72,223.49,0.82151538]
[1693405606996,0.07250636,223.72,223.48,0.82151538]
[1693405607189,0.07250636,223.72,223.49,0.82151538]
[1693405608396,0.07250636,223.73,223.49,0.82151538]
[1693405608595,0.07250636,223.73,223.49,0.89430943]
[1693405608792,0.07250636,223.73,223.5,0.82151538]
[1693405610494,0.07250636,223.72,223.5,0.82151538]
[1693405616900,0.07250636,223.72,223.49,0.82151538]
[1693405617101,0.07250636,223.72,223.5,0.82154101]
[1693405617304,0.07250636,223.72,223.51,0.82154101]
[1693405617505,0.07250636,223.72,223.49,0.07279405]
[1693405617801,0.07250636,223.72,223.5,0.82153582]
[1693405621814,0.07250636,223.72,223.49,0.82153582]
[1693405622015,0.07250636,223.72,223.5,0.82153582]
[1693405622215,0.07250636,223.72,223.51,0.82153582]
[1693405622416,0.07250636,223.72,223.48,0.07279405]
[1693405622716,0.07250636,223.72,223.49,0.82154567]
[1693405623017,0.07250636,223.71,223.49,0.82154567]
[1693405623410,0.07250636,223.72,223.49,0.82154567]
[1693405623614,0.07250636,223.71,223.49,0.82154567]
[1693405624515,0.07250636,223.72,223.49,0.82154567]
[1693405624911,0.07250636,223.71,223.49,0.82154567]
[1693405627613,0.07250636,223.71,223.48,0.82154567]
[1693405627814,0.07250636,223.7,223.49,0.82159029]
[1693405628013,0.07250636,223.7,223.48,0.82159029]
[1693405628216,0.07250636,223.71,223.49,0.82158991]
[1693405628418,0.07250636,223.7,223.48,0.82158991]
[1693405628618,0.07250636,223.7,223.49,0.82160584]
[1693405628813,0.07250636,223.7,223.48,0.82160584]
[1693405629015,0.07250636,223.7,223.49,0.82159687]
[1693405629216,0.07250636,223.7,223.48,0.82159687]
[1693405629417,0.07250636,223.7,223.49,0.82159665]
[1693405629613,0.07250636,223.7,223.48,0.82159665]
[1693405629819,0.07250636,223.7,223.49,0.82159265]
[1693405630319,0.07250636,223.7,223.47,0.07279405]
[1693405630320,0.07250636,223.71,223.47,0.07279405]
[1693405630519,0.07250636,223.71,223.48,0.82159236]
[1693405630913,0.07250636,223.7,223.48,0.82159236]
[1693405631119,0.07250636,223.71,223.48,0.82159236]
[1693405631813,0.07250636,223.7,223.48,0.82159236]
[1693405632221,0.07250636,223.71,223.48,0.82159236]
[1693405633019,0.07250636,223.7,223.48,0.82159236]
[1693405635521,0.07250636,223.71,223.48,0.82159236]
[1693405636615,0.07250636,223.7,223.48,0.82159236]
[1693405637822,0.07250636,223.71,223.48,0.82159236]
[1693405642022,0.07250636,223.7,223.48,0.82159236]
[1693405642220,0.07250636,223.7,223.47,0.82159236]
[1693405642425,0.07250636,223.7,223.48,0.82159236]
[1693405642726,0.07250636,223.7,223.49,0.82159236]
[1693405643019,0.07250636,223.7,223.46,0.07279405]
[1693405643224,0.07250636,223.7,223.47,0.82161135]
[1693405643424,0.07250636,223.71,223.47,0.82161135]
[1693405643923,0.07250636,223.7,223.47,0.82161135]
[1693405645325,0.07250636,223.65,223.41,0.07279405]
[1693405645527,0.07250636,223.65,223.42,0.8218518]
[1693405645718,0.07250636,223.65,223.41,0.8218518]
[1693405645921,0.07250636,223.64,223.41,0.8218518]
[1693405646722,0.07250636,223.64,223.42,0.8218518]
[1693405646923,0.07250636,223.63,223.39,0.07279405]
[1693405647118,0.07250636,223.63,223.4,0.82187364]
[1693405647322,0.07250636,223.65,223.4,0.82187364]
[1693405647519,0.07250636,223.65,223.29,0.14558811]
[1693405647520,0.07250636,223.64,223.37,0.82187364]
[1693405647724,0.07250636,223.64,223.38,0.82196149]
[1693405647923,0.07250636,223.64,223.35,0.82196149]
[1693405648125,0.07250636,223.66,223.36,0.82196149]
[1693405648321,0.07250636,223.66,223.33,0.82196149]
[1693405648524,0.07250636,223.66,223.34,0.82196149]
[1693405648724,0.07250636,223.66,223.33,0.82196149]
[1693405648924,0.07250636,223.66,223.35,0.82196149]
[1693405649130,0.07250636,223.66,223.36,0.82196149]
[1693405649320,0.07250636,223.66,223.33,0.82196149]
[1693405649524,0.07250636,223.66,223.34,0.82196149]
[1693405649829,0.07250636,223.66,223.35,0.82196149]
[1693405650029,0.07250636,223.66,223.33,0.89475554]
[1693405650229,0.07250636,223.68,223.34,0.82196149]
[1693405650431,0.07250636,223.68,223.32,0.89475554]
[1693405650729,0.07250636,223.68,223.33,0.82196149]
[1693405650929,0.07250636,223.69,223.33,0.82196149]
[1693405651328,0.07250636,223.69,223.32,0.82196149]
[1693405651523,0.07250636,223.69,223.33,0.82196149]
[1693405651730,0.07250636,223.69,223.34,0.82196149]
[1693405651932,0.07250636,223.69,223.32,0.82196149]
[1693405652131,0.07250636,223.7,223.33,0.82196149]
[1693405652333,0.07250636,223.7,223.31,0.82196149]
[1693405652535,0.07250636,223.7,223.32,0.82196149]
[1693405653930,0.07250636,223.71,223.32,0.82196149]
[1693405655334,0.07250636,223.71,223.31,0.82196149]
[1693405655638,0.07250636,223.71,223.32,0.82196149]
[1693405655937,0.07250636,223.71,223.33,0.82196149]
[1693405656129,0.07250636,223.71,223.34,0.82196149]
[1693405656336,0.07250636,223.71,223.35,0.82196149]
[1693405656533,0.14501273,223.74,223.31,0.07279405]
[1693405656534,0.07250636,223.72,223.32,0.82196149]
[1693405656836,0.07250636,223.72,223.33,0.82196149]
[1693405657031,0.07250636,223.72,223.32,0.82196149]
[1693405657232,0.07250636,223.72,223.33,0.82196149]
[1693405657433,0.07250636,223.72,223.31,0.82196149]
[1693405657633,0.07250636,223.72,223.32,0.82196149]
[1693405657833,0.07250636,223.72,223.3,0.07279405]
[1693405657834,0.07250636,223.72,223.31,0.82196149]
[1693405658034,0.07250636,223.71,223.32,0.82196149]
[1693405658234,0.07250636,223.72,223.31,0.82196149]
[1693405658428,0.07250636,223.72,223.32,0.82196149]
[1693405658633,0.07250636,223.72,223.31,0.82196149]
[1693405659736,0.07250636,223.73,223.31,0.89475554]
[1693405660036,0.07250636,223.73,223.32,0.82196149]
[1693405661335,0.07250636,223.74,223.32,0.89475554]
[1693405661636,0.07250636,223.74,223.33,0.82196149]
[1693405662235,0.07250636,223.73,223.33,0.82196149]
[1693405662637,0.07250636,223.73,223.32,0.82196149]
[1693405662938,2.41687898,223.87,223.33,0.82196149]
[1693405662939,0.07250636,223.72,223.33,0.82196149]
[1693405663237,0.07250636,223.72,223.34,0.82196149]
[1693405663439,0.07250636,223.72,223.31,0.82196149]
[1693405663736,0.07250636,223.72,223.32,0.82196149]
[1693405663935,0.07250636,223.72,223.31,0.82196149]
[1693405664137,0.07250636,223.72,223.32,0.82196149]
[1693405664338,0.07250636,223.72,223.31,0.82196149]
[1693405664535,0.07250636,223.72,223.32,0.82196149]
[1693405664730,0.07250636,223.72,223.31,0.82196149]
[1693405664932,0.07250636,223.72,223.32,0.82196149]
[1693405665130,0.07250636,223.72,223.31,0.82196149]
[1693405665337,0.07250636,223.72,223.32,0.82196149]
[1693405665533,0.07250636,223.72,223.33,0.82196149]
[1693405665733,0.07250636,223.72,223.31,0.82196149]
[1693405665931,0.07250636,223.71,223.32,0.82196149]
[1693405666138,0.07250636,223.71,223.31,0.82196149]
[1693405666336,0.07250636,223.71,223.32,0.82196149]
[1693405666536,0.07250636,223.71,223.33,0.82196149]
[1693405666736,0.07250636,223.71,223.34,0.82196149]
[1693405666940,0.07250636,223.71,223.35,0.82196149]
[1693405667138,0.07250636,223.71,223.31,0.82196149]
[1693405667439,0.07250636,223.71,223.32,0.82196149]
[1693405667634,0.07250636,223.71,223.33,0.82196149]
[1693405667837,0.07250636,223.71,223.34,0.82196149]
[1693405668134,0.07250636,223.71,223.35,0.82196149]
[1693405668437,0.07250636,223.71,223.36,0.82196149]
[1693405668647,0.07250636,223.71,223.31,0.82196149]
[1693405668845,0.07250636,223.71,223.32,0.82196149]
[1693405669145,0.07250636,223.71,223.33,0.82196149]
[1693405669341,0.07250636,223.7,223.31,0.82196149]
[1693405669545,0.07250636,223.7,223.32,0.82196149]
[1693405669745,0.07250636,223.71,223.31,0.82196149]
[1693405670045,0.07250636,223.71,223.32,0.82196149]
[1693405670243,0.07250636,223.7,223.31,0.82196149]
[1693405670444,0.07250636,223.7,223.32,0.82196149]
[1693405670640,0.07250636,223.7,223.31,0.82196149]
[1693405670842,0.07250636,223.7,223.32,0.82196149]
[1693405671041,0.07250636,223.7,223.33,0.82196149]
[1693405671245,0.07250636,223.7,223.34,0.82196149]
[1693405671446,0.07250636,223.7,223.31,0.89475554]
[1693405671646,0.07250636,223.7,223.32,0.82196149]
[1693405673245,0.07250636,223.7,223.32,0.89475554]
[1693405673441,0.07250636,223.7,223.33,0.82196149]
[1693405674247,0.07250636,223.69,223.33,0.89475554]
[1693405674447,0.07250636,223.69,223.34,0.82196149]
[1693405675047,0.07250636,223.7,223.34,0.82196149]
[1693405675446,0.07250636,223.69,223.34,0.89475554]
[1693405675646,0.07250636,223.69,223.35,0.82196149]
[1693405676345,0.07250636,223.68,223.35,0.82196149]
[1693405676551,0.07250636,223.67,223.35,0.82196149]
[1693405676750,0.07250636,223.66,223.34,0.82196149]
[1693405676951,0.07250636,223.66,223.35,0.82196149]
[1693405677151,0.07250636,223.64,223.33,0.82196149]
[1693405677350,0.07250636,223.64,223.34,0.82196149]
[1693405677551,0.07250636,223.64,223.35,0.82196149]
[1693405677753,0.07250636,223.64,223.36,0.82196149]
[1693405677948,0.07250636,223.64,223.33,0.82196149]
[1693405678154,0.07250636,223.64,223.34,0.82196149]
[1693405678454,0.07250636,223.64,223.35,0.82196149]
[1693405678654,0.07250636,223.64,223.33,0.82196149]
[1693405678849,0.07250636,223.64,223.34,0.82196149]
[1693405679047,0.07250636,223.64,223.35,0.82196149]
[1693405679250,0.07250636,223.59,223.36,0.82196149]
[1693405679450,0.07250636,223.58,223.28,0.07279405]
[1693405679656,0.07250636,223.58,223.29,0.82221198]
[1693405680456,0.07250636,223.54,223.3,0.07279405]
[1693405680651,0.07250636,223.54,223.31,0.82221198]
[1693405680855,0.07250636,223.54,223.28,0.07279405]
[1693405681053,0.07250636,223.53,223.29,0.8222862]
[1693405681357,0.07250636,223.53,223.29,0.89508025]
[1693405681556,0.07250636,223.54,223.29,0.89508025]
[1693405681756,0.07250636,223.55,223.29,0.89508025]
[1693405682158,0.07250636,223.55,223.3,0.8222862]
[1693405682359,0.07250636,223.56,223.3,0.89508025]
[1693405682654,0.07250636,223.58,223.31,0.8222862]
[1693405682859,0.07250636,223.59,223.31,0.8222862]
[1693405683060,0.07250636,223.58,223.32,0.8222862]
[1693405683355,0.07250636,223.64,223.33,0.89508025]
[1693405683558,0.07250636,223.64,223.34,0.89508025]
[1693405683756,0.07250636,223.64,223.35,0.8222862]
[1693405685062,0.07250636,223.63,223.35,0.8222862]
[1693405685261,0.07250636,223.63,223.34,0.8222862]
[1693405685457,0.07250636,223.64,223.35,0.8222862]
[1693405685659,0.07250636,223.64,223.34,0.8222862]
[1693405685862,0.07250636,223.64,223.35,0.8222862]
[1693405690369,0.07250636,223.64,223.36,0.8222862]
[1693405690565,0.07250636,223.64,223.34,0.89508025]
[1693405690771,0.07250636,223.64,223.35,0.8222862]
[1693405694771,2.41687898,223.78,223.35,0.8222862]
[1693405694772,0.07250636,223.66,223.35,0.89508025]
[1693405694967,0.07250636,223.66,223.36,0.07279405]
[1693405695266,0.07250636,223.66,223.36,0.89508025]
[1693405695468,0.07250636,223.67,223.37,0.89508025]
[1693405695671,0.07250636,223.71,223.41,0.07279405]
[1693405695972,0.07250636,223.73,223.42,0.8222862]
[1693405696168,0.07250636,223.73,223.41,0.8222862]
[1693405696367,0.07250636,223.73,223.42,0.8222862]
[1693405696565,0.07250636,223.73,223.41,0.8222862]
[1693405696973,0.07250636,223.72,223.41,0.8222862]
[1693405697173,0.07250636,223.73,223.41,0.8222862]
[1693405697367,0.07250636,223.73,223.42,0.8222862]
[1693405697570,0.07250636,223.73,223.43,0.8222862]
[1693405697772,0.07250636,223.73,223.4,0.8222862]
[1693405697969,0.07250636,223.73,223.41,0.8222862]
[1693405698173,0.07250636,223.73,223.42,0.8222862]
[1693405698367,0.07250636,223.73,223.4,0.8222862]
[1693405698571,0.07250636,223.73,223.41,0.8222862]